[Event "3rd VIZAG GM-Open 2022"]
[Site "Visakapatnam"]
[Date "2022.06.17"]
[Round "10.17"]
[White "Bharat Kumar Reddy Poluri"]
[Black "Adireddy Arjun"]
[Result "1-0"]
[ECO "B91"]
[WhiteElo "2224"]
[BlackElo "1898"]
[Annotator "TA"]
[PlyCount "101"]
[EventDate "2022.06.13"]
[EventType "swiss"]
[EventCountry "IND"]
[SourceTitle "playchess.com"]
[Source "ChessBase"]
[SourceQuality "1"]
[TimeControl "5400+30"]

{[%evp 21,101,6,5,14,9,15,89,77,83,72,121,114,123,0,12,0,0,-2,61,58,62,63,48,68,61,61,71,70,70,70,70,17,15,18,16,8,8,8,94,98,153,144,145,120,160,163,206,204,377,375,551,476,422,358,435,589,693,672,738,611,681,640,1464,1457,12811,8064,2040,1814,29958,6999,29976,29973,29976,29973,29973,29973,29954,6677,29979,29980,29984,29985]} 1. e4 {[%emt 0:00:04] Nor,I} c5 {[%emt 0:00:57]} 2. Nf3 {[%emt 0:00:03]} d6 {[%emt 0:00:06]} 3. d4 {[%emt 0:00:32]} cxd4 {[%emt 0:00:10]} 4. Nxd4 {[%emt 0:00:02]} Nf6 {[%emt 0:00:22]} 5. Nc3 {[%emt 0:00:03]} a6 {[%emt 0:00:09]} 6. g3 {[%emt 0:00:20]} e5 {[%emt 0:00:19]} 7. Nde2 {[%emt 0:00:03]} Be7 {[%emt 0:00:09]} 8. Bg2 {[%emt 0:00:05]} O-O {[%emt 0:00:09]} 9. a4 {[%emt 0:00:03]} b6 {[%emt 1:32:39]} 10. O-O {[%emt 0:01:16]} Bb7 {[%emt 0:00:00]} 11. h3 {[%emt 0:00:35]} Nbd7 {[%emt 0:00:00][%cal Ob6b5]} 12. g4 {[%emt 0:00:31] B91: Sicilian Najdorf: 6 g3.} Nc5 {[%emt 0:00:00][%cal Rf6e4]} 13. Ng3 {[%emt 0:00:06]} b5 {[%emt 0:00:00]} (13... g6 $11) 14. axb5 $16 {[%emt 0:08:41] White is better.} axb5 {[%emt 0:00:00]} 15. Rxa8 {[%emt 0:00:02]} Qxa8 {[%emt 0:00:00]} ({Black should try} 15... Bxa8 16. b4 Ne6) 16. Nf5 {[%emt 0:01:06]} Qd8 {[%emt 0:00:00][%cal Rf6e4] [#]} 17. Bg5 $146 {[%emt 0:09:32] White is more active.} (17. Nxb5 $16 Bxe4 18. Bxe4 (18. Nbxd6 Bxg2 19. Kxg2 g6 $16) (18. Nfxd6 Bxg2 19. Kxg2 Qb8 $14) 18... Nfxe4 19. f3) ({Predecessor:} 17. Nxb5 Nfxe4 18. b4 Ne6 19. Re1 Bc6 20. Na7 Nxf2 21. Kxf2 Bh4+ 22. Nxh4 Qxh4+ 23. Kg1 Nd4 24. Be3 f5 25. Bf2 Qf6 26. Bxd4 fxg4 27. Qxg4 exd4 28. Qe6+ {1-0 (28) Kholmov,R (2465)-Kokarev,D Perm 1997 CBM 058 [Nor,I]}) 17... b4 $11 {[%emt 0:00:00]} 18. Nxe7+ {[%emt 0:00:57]} (18. Na2 {seems wilder.} Ncxe4 19. Bxf6 Bxf6 20. Nxb4 d5 21. Bxe4 dxe4 22. c4) 18... Qxe7 {[%emt 0:00:00]} 19. Nd5 {[%emt 0:00:07]} Qe6 {[%emt 0:00:00]} ({Better is} 19... Bxd5 $11 20. exd5 b3) 20. Bxf6 $14 {[%emt 0:01:19]} Bxd5 {[%emt 0:00:00]} 21. Bxg7 $1 {[%emt 0:00:18]} ({But not} 21. Qxd5 Qxf6 22. Ra1 h6 $11) 21... Kxg7 {[%emt 0:00:00]} 22. exd5 {[%emt 0:00:13]} Qf6 {[%emt 0:00:00]} 23. Qd2 {[%emt 0:00:52]} Qf4 {[%emt 0:00:00]} 24. Qxf4 {[%emt 0:00:35]} exf4 $16 {[%emt 0:00:00][%mdl 4096] Endgame KRB-KRN} 25. b3 {[%emt 0:14:15]} Ra8 {[%emt 0:00:00] Prevents Ra1.} 26. Rd1 {[%emt 0:02:48]} (26. Re1 $14) 26... Ra2 $11 {[%emt 0:00:00]} 27. Rd4 {[%emt 0:00:08]} Rxc2 {[%emt 0:00:00]} 28. Rxf4 {[%emt 0:02:52]} Nd3 {[%emt 0:00:00]} 29. Rd4 {[%emt 0:00:18]} Rc3 {[%emt 0:00:00]} (29... Nxf2 $11 {keeps the balance.} 30. Rxb4 Nd3) 30. Bf1 $16 {[%emt 0:00:35] White now steadily converts the win.} Nc5 {[%emt 0:00:00]} ({Black should play} 30... Ne5 31. Rxb4 Nf3+ 32. Kg2 Ne1+ 33. Kh1 Nd3 34. Bxd3 Rxd3) 31. Rxb4 {[%emt 0:00:06]} Nxb3 {[%emt 0:00:20]} 32. Rb6 {[%emt 0:02:09]} Nd2 {[%emt 0:00:05] [#] ...Rc1 is the strong threat.} 33. Bg2 $1 {[%emt 0:00:35]} (33. Rxd6 $2 Rc1 34. Kg2 Rxf1 $19) 33... Rc1+ {[%emt 0:05:32]} 34. Kh2 {[%emt 0:00:05]} Nc4 $2 {[%emt 0:00:06]} (34... Rd1 35. Rxd6 Nc4) 35. Rc6 $18 {[%emt 0:00:19]} h6 {[%emt 0:00:33]} (35... f5 $142 36. gxf5 Kf6) 36. Kg3 {[%emt 0:02:18]} Kf6 {[%emt 0:00:31]} 37. Kf4 {[%emt 0:01:10]} Ke7 {[%emt 0:01:54]} 38. Be4 {[%emt 0:00:44]} Rc3 {[%emt 0:00:13]} 39. Bb1 {[%emt 0:01:07]} h5 {[%emt 0:02:46]} 40. Ba2 {[%emt 0:03:33]} Rxh3 {[%emt 0:00:27] And now ...Ne5 would win.} 41. Bxc4 {[%emt 0:00:17]} hxg4 {[%emt 0:00:13]} 42. Kxg4 {[%emt 0:00:11] KRB-KR} Rc3 {[%emt 0:00:04]} 43. f4 {[%emt 0:00:19] Intending Bb5 and mate.} Rc1 {[%emt 0:00:15]} 44. Kf5 {[%emt 0:00:08] White wants to mate with Be2.} Rc3 {[%emt 0:00:08]} 45. Be2 {[%emt 0:00:28]} Re3 {[%emt 0:00:08]} 46. Bh5 {[%emt 0:00:10]} Rd3 {[%emt 0:00:06]} 47. Ke4 {[%emt 0:00:18]} Rh3 {[%emt 0:00:06]} 48. Rc7+ {[%emt 0:00:45]} Kd8 {[%emt 0:00:08] [#]} 49. Rd7+ $3 {[%emt 0:00:08][%mdl 512]} Kxd7 {[%emt 0:00:12]} (49... Kc8 50. Bg4) 50. Bg4+ {[%emt 0:00:01]} f5+ {[%emt 0:00:08]} 51. Bxf5+ {[%emt 0:00:05] Weighted Error Value: White=0.21 (precise) /Black=0.73} 1-0

[Event "3rd VIZAG GM-Open 2022"]
[Site "Visakapatnam"]
[Date "2022.06.17"]
[Round "10.18"]
[White "Aditya Varun Gampa"]
[Black "Bommini Mounika Akshaya"]
[Result "0-1"]
[ECO "B90"]
[WhiteElo "1836"]
[BlackElo "2108"]
[Annotator "TA"]
[PlyCount "118"]
[EventDate "2022.06.13"]
[EventType "swiss"]
[EventCountry "IND"]
[SourceTitle "playchess.com"]
[Source "ChessBase"]
[SourceQuality "1"]
[TimeControl "5400+30"]

{[%evp 13,118,4,12,-4,15,15,16,20,16,22,17,11,52,18,13,25,39,34,36,37,52,-18,-16,-15,82,0,0,0,0,0,0,0,0,-64,-27,-49,-41,-50,-19,-37,0,-18,-29,-44,-47,-52,-70,-206,-216,-198,-200,-309,-224,-402,-405,-447,-364,-352,-346,-402,-185,-503,-461,-1066,-1062,-1084,-1093,-1016,-1010,-1437,-1281,-1012,-1591,-1363,-1341,-1670,-1666,-2480,-2661,-2209,-2066,-1889,-1795,-5822,-5438,-29973,-29969,-29967,-29962,-6839,-6747,-29979,-29980,-29978,-29975,-29985,-29984,-29988,-29989,-29989,-29989,-29990,-29990,-29991,-29992,-29992,-29993]} 1. e4 {[%emt 0:00:02]} c5 {[%emt 0:01:30]} 2. Nf3 {[%emt 0:00:11]} d6 {[%emt 0:00:10]} 3. d4 {[%emt 0:00:08]} cxd4 {[%emt 0:00:05]} 4. Nxd4 {[%emt 0:00:03]} Nf6 {[%emt 0:00:05][%cal Bg8f6,Bf6g4,Bg4e3][%mdl 32]} 5. Nc3 {[%emt 0:00:03]} a6 {[%emt 0:00:05]} 6. Be3 {[%emt 0:00:07]} e5 {[%emt 0:00:10]} 7. Nf3 {[%emt 0:01:19][%cal Bd4f3,Bf3d2,Bd2c4][%mdl 32]} Be7 {[%emt 0:02:50]} 8. Nd2 {[%emt 0:01:00] B90: Sicilian Najdorf: Unusual White 6th moves, 6 Be3 Ng4 and 6 Be3 e5.} Ng4 {[%emt 0:02:18]} 9. Nc4 {[%emt 0:01:15] [#] Strongly threatening Bb6.} Nxe3 {[%emt 0:00:59]} 10. Nxe3 {[%emt 0:00:15] The position is equal.} Be6 {[%emt 0:10:51]} 11. Bc4 {[%emt 0:06:24]} O-O {[%emt 0:02:08]} 12. a4 {[%emt 0:08:13]} Nd7 {[%emt 0:02:25]} (12... Bg5 $5 {[%cal Rg5e3]} 13. Ncd5 Nd7 $11) 13. Ncd5 {[%emt 0:02:00] [#]} Bg5 $146 {[%emt 0:03:39]} ({Predecessor:} 13... Rc8 14. Qe2 Nb6 15. Bb3 Bg5 16. Rd1 Bxe3 17. Nxe3 Qd7 18. a5 Na4 19. O-O Nxb2 {0-1 (43) Kalogeris,I (1843)-Neverov,V (2561) Paleochora 2009}) 14. O-O {[%emt 0:04:37]} Rc8 {[%emt 0:07:14] White must now prevent ...Bxe3.} 15. b3 {[%emt 0:06:34]} g6 {[%emt 0:09:59]} 16. a5 {[%emt 0:02:52]} Nc5 {[%emt 0:09:48][%cal Bd7c5,Bc5e6,Be6g5,Bg5f3][%mdl 32]} 17. Nb6 {[%emt 0:15:58] Pair of Knights!} (17. Qf3 $14) 17... Rc6 {[%emt 0:04:32]} 18. Qf3 {[%emt 0:10:43]} Qf6 {[%emt 0:11:18]} (18... Bxe3 $11 19. Qxe3 Bxc4 20. Nxc4 Nxe4) 19. Bd5 {[%emt 0:13:51]} (19. Qxf6 $16 Bxf6 20. Bxe6 fxe6 21. f3) 19... Qxf3 $11 {[%emt 0:03:39]} 20. gxf3 {[%emt 0:00:01]} Bxd5 {[%emt 0:02:35]} 21. Nexd5 {[%emt 0:02:28]} Ne6 {[%emt 0:01:39]} 22. c3 {[%emt 0:00:28]} f5 {[%emt 0:01:06]} 23. b4 {[%emt 0:01:50]} ({Better is} 23. Rfe1 $11) 23... Kg7 {[%emt 0:04:13]} 24. Rad1 {[%emt 0:03:25]} Bd8 {[%emt 0:02:11]} 25. c4 {[%emt 0:03:08]} Ng5 {[%emt 0:08:57]} 26. b5 {[%emt 0:01:30]} Nxf3+ {[%emt 0:01:33]} 27. Kg2 {[%emt 0:15:35]} Nh4+ {[%emt 0:03:02]} 28. Kh1 {[%emt 0:00:00]} axb5 {[%emt 0:00:56]} 29. cxb5 {[%emt 0:00:00]} Rc2 {[%emt 0:01:49]} 30. Rc1 {[%emt 0:00:00] White does not recover from this.} (30. Ne3 $15 Ra2 31. Rxd6) 30... Rxc1 $19 {[%emt 0:01:39]} 31. Rxc1 {[%emt 0:00:00]} fxe4 {[%emt 0:00:22]} 32. Rc2 {[%emt 0:00:00]} (32. Kg1 $142) 32... Rf3 {[%emt 0:00:50]} 33. Nc4 $2 {[%emt 0:00:00] [#]} (33. Ne3 Nf5 34. Nxf5+ gxf5 35. Nc4) 33... Bxa5 $1 {[%emt 0:01:43][%mdl 512]} 34. Nde3 {[%emt 0:00:00]} (34. Nce3 Nf5) 34... Be1 {[%emt 0:00:26]} 35. Kg1 {[%emt 0:00:00]} Bb4 {[%emt 0:00:14]} 36. b6 {[%emt 0:01:36]} Kf7 {[%emt 0:00:40]} (36... Rf7 $142 {...Nf3+ is the strong threat.} 37. Ra2 Nf3+ 38. Kg2 Ne1+ 39. Kh1 Bc5) 37. Nd5 $2 {[%emt 0:00:53]} (37. Rb2 {nothing else works.} Bc5 38. Na5) 37... Bc5 {[%emt 0:00:36]} 38. Nxe5+ {[%emt 0:00:42]} (38. Nce3 $142) 38... Ke6 {[%emt 0:00:32]} 39. Nxf3 {[%emt 0:01:47]} Nxf3+ {[%emt 0:00:01]} ({Weaker is} 39... exf3 40. Ne3 $11) 40. Kf1 {[%emt 0:00:09]} Kxd5 {[%emt 0:00:03][%mdl 4096] Endgame} 41. Ra2 {[%emt 0:00:07]} Bxb6 {[%emt 0:00:19]} 42. Ra8 {[%emt 0:00:07]} Nxh2+ {[%emt 0:00:21]} 43. Kg2 {[%emt 0:00:11]} Nf3 {[%emt 0:00:09]} 44. Rb8 {[%emt 0:00:10]} Kc6 {[%emt 0:00:19]} 45. Rc8+ {[%emt 0:00:12]} Bc7 {[%emt 0:00:15]} 46. Rh8 {[%emt 0:00:14]} h5 {[%emt 0:00:07]} 47. Re8 {[%emt 0:00:12]} Ne5 {[%emt 0:00:06]} 48. Kg3 {[%emt 0:00:12]} b5 {[%emt 0:00:04][%cal Bb7b5,Bb5b4,Bb4b3,Bb3b2][%mdl 32]} 49. Kf4 {[%emt 0:00:09]} b4 {[%emt 0:00:15]} 50. Ra8 {[%emt 0:00:15]} b3 {[%emt 0:01:02]} 51. Ra3 {[%emt 0:00:12]} b2 {[%emt 0:00:30]} 52. Rc3+ {[%emt 0:00:12]} Kd5 {[%emt 0:01:25] Black mates.} 53. Rb3 {[%emt 0:00:11]} Nd3+ {[%emt 0:00:57]} 54. Ke3 {[%emt 0:00:05]} Bd8 {[%emt 0:00:55]} 55. Rb8 {[%emt 0:00:54]} Bg5+ {[%emt 0:00:11]} 56. f4 {[%emt 0:00:04]} Bxf4+ {[%emt 0:00:06]} 57. Ke2 {[%emt 0:00:03]} h4 {[%emt 0:00:38]} 58. Rb5+ {[%emt 0:01:14]} Kc4 {[%emt 0:00:16]} 59. Rb8 {[%emt 0:00:26]} Nb4 {[%emt 0:00:13] Weighted Error Value: White=0.71/Black=0.21 (precise)} 0-1